{"text_format":"3","workbook":"xlsx","n_sheets":6,"sheets":["Strona główna","Dane osobowe","Szczegóły podróży","Hotel i zajęcia","Wypożyczenie samochodu","Informacje i kontakty alarmowe"],"not_rendered":{"images":19,"defined_names":10},"read":"whole","date_system":"1900"}

{"sheet":"Strona główna","index":0,"n_rows":34,"n_cols":22,"rows_kept":34,"merged":[[32,1,32,3],[32,6,32,8],[32,11,32,13],[32,16,32,18],[32,21,32,23],[33,1,33,3],[33,6,33,8],[33,11,33,13],[33,16,33,18],[33,21,33,23]]}
{"$rows_empty":32}
[null,{"$f":"Wpis_wydatku_osobistego/Liczba_wydatków_osobistych","v":{"v":1,"d":"100%"}},{"$nulls":4},{"$f":"Wpis_wydatku_na_podróż/Liczba_wydatków_na_podróże","v":{"v":0.65,"d":"65%"}},{"$nulls":4},{"$f":"Wpis_pobytu_w_hotelu/Liczba_pobytów_w_hotelach","v":{"v":0.5384615384615384,"d":"54%"}},{"$nulls":4},{"$f":"IF('Wypożyczenie samochodu'!D4=\"Tak\",Wpis_wypożyczenia_samochodu/Liczba_wypożyczeń_samochodów,1)","v":{"v":0.2857142857142857,"d":"29%"}},{"$nulls":4},{"$f":"Wpis_wydatku_specjalnego/Liczba_wydatków_specjalnych","v":{"v":0.625,"d":"63%"}}]
[null,{"$f":"TEXT(B33,\"0% \"\"wpisane\"\"\")","v":"100% wpisane"},{"$nulls":4},{"$f":"TEXT(G33,\"0% \"\"wpisane\"\"\")","v":"65% wpisane"},{"$nulls":4},{"$f":"TEXT(L33,\"0% \"\"wpisane\"\"\")","v":"54% wpisane"},{"$nulls":4},{"$f":"TEXT(Q33,\"0% \"\"wpisane\"\"\")","v":"29% wpisane"},{"$nulls":4},{"$f":"TEXT(V33,\"0% \"\"wpisane\"\"\")","v":"63% wpisane"}]

{"sheet":"Dane osobowe","index":1,"n_rows":11,"n_cols":5,"rows_kept":11,"merged":[[4,2,5,2],[4,3,5,3],[4,4,5,4],[7,2,8,2],[7,3,8,3],[7,4,8,4],[17,1,17,4]]}
[]
[]
[{"$f":"IF(COUNTA(B4:B8)<1,\"*\",\"\")","v":""},"Imiona i nazwiska (oraz nicki)",{"$f":"IF(E3=\"\",1,\"\")","v":""},"Adres domowy","ul. Północna 789, 00-012 Szczecin"]
[null,"Witold Dyszkiewicz"]
[null,"Anna Dyszkiewicz",{"$f":"IF(E5=\"\",1,\"\")","v":""},"Telefon domowy",3455550123]
[null,"Marcin Dyszkiewicz"]
[]
[null,null,{"$f":"IF((E8=0)+(E8=\"\"),1,\"\")","v":""},"Telefony komórkowe",3455550124]
[]
[]
[{"$f":"Wpis_wydatku_osobistego","v":3},{"$f":"IF(A11<>Liczba_wydatków_osobistych,\"Brakujące istotne informacje szczegółowe\",\"Wpisane istotne informacje szczegółowe\")","v":"Wpisane istotne informacje szczegółowe"}]

{"sheet":"Szczegóły podróży","index":2,"n_rows":18,"n_cols":6,"rows_kept":18,"merged":[[23,1,23,5]]}
[]
[]
[null,"Szczegóły odlotu",null,null,"Szczegóły powrotu"]
[{"$f":"IF(C4=\"\",1,\"\")","v":""},"Data",{"$f":"TODAY()+45","v":"2013-01-06"},{"$f":"IF(F4=\"\",1,\"\")","v":""},"Data",{"$f":"TODAY()+51","v":"2013-01-12"}]
[{"$f":"IF(C5=\"\",1,\"\")","v":""},"Linie lotnicze","Firma B","","Linie lotnicze","Firma B"]
[{"$f":"IF(C6=\"\",1,\"\")","v":""},"Numer lotu","WS192",1,"Numer lotu"]
[{"$f":"IF(C7=\"\",1,\"\")","v":""},"Z","Szczecin","","Z","Warszawa"]
[{"$f":"IF(C8=\"\",1,\"\")","v":""},"Godzina odlotu","12:30:00",1,"Godzina odlotu"]
[null,"Terminal/brama odlotu",null,1,"Terminal/brama odlotu"]
[{"$f":"IF(C10=\"\",1,\"\")","v":""},"Do","Warszawa",1,"Do"]
[{"$f":"IF(C11=\"\",1,\"\")","v":""},"Godzina przylotu","12:32:00",1,"Godzina przylotu"]
[null,"Czas lotu","6 godzin",null,"Czas lotu"]
[{"$f":"IF(C13=\"\",1,\"\")","v":""},"Numery miejsc","A1, A2, A3",{"$f":"IF(F13=\"\",1,\"\")","v":1},"Numery miejsc"]
[{"$f":"IF(C14=\"\",1,\"\")","v":""},"Numery potwierdzeń","Tak samo",{"$f":"IF(F14=\"\",1,\"\")","v":1},"Numery potwierdzeń"]
[{"$f":"IF(C15=\"\",1,\"\")","v":""},"Posiłek","Bez ograniczeń",null,"Posiłek"]
[null,"Numer telefonu linii lotniczych",1235550234,null,"Numer telefonu linii lotniczych",1235550234]
[]
[{"$f":"Wpis_wydatku_na_podróż","v":13},{"$f":"IF(A18<>Liczba_wydatków_na_podróże,\"Brakujące istotne informacje szczegółowe\",\"Wpisane istotne informacje szczegółowe\")","v":"Brakujące istotne informacje szczegółowe"}]

{"sheet":"Hotel i zajęcia","index":3,"n_rows":15,"n_cols":7,"rows_kept":15,"merged":[[21,1,21,6]]}
[]
[]
[null,"Szczegóły pobytu w hotelu/zakwaterowania",{"$nulls":3},"Szczegółowe informacje o zajęciach"]
[{"$f":"IF(C4=\"\",1,\"\")","v":""},"Data rezerwacji",{"$f":"TODAY()+45","v":"2013-01-06"},null,null,"Zajęcia 1","Narty"]
["","Nazwa hotelu","Alpine Ski House",null,{"$f":"IF(AND($G$4<>\"\",G5=\"\"),1,\"\")","v":1},"Daty i godziny"]
["","Adres hotelu","ul. Główna 23",null,{"$f":"IF(AND($G$4<>\"\",G6=\"\"),1,\"\")","v":1},"Data rezerwacji"]
["","Numer telefonu hotelu","Warszawa",null,{"$f":"IF(AND($G$4<>\"\",G7=\"\"),1,\"\")","v":1},"Numer potwierdzenia"]
["","Data/godzina zameldowania się",{"$f":"TODAY()+45.5","v":"2013-01-06T12:00:00"},null,null,"Zajęcia 2","Coho Vineyard & Winery"]
["","Data/godzina wymeldowania się",{"$f":"TODAY()+50.5","v":"2013-01-11T12:00:00"},null,{"$f":"IF(AND($G$8<>\"\",G9=\"\"),1,\"\")","v":1},"Daty i godziny"]
["","Numer potwierdzenia","CJ1234567",null,{"$f":"IF(AND($G$8<>\"\",G10=\"\"),1,\"\")","v":1},"Data rezerwacji"]
[{"$nulls":4},{"$f":"IF(AND($G$8<>\"\",G11=\"\"),1,\"\")","v":1},"Numer potwierdzenia"]
[{"$f":"Wpis_pobytu_w_hotelu","v":7},{"$f":"IF(A12<>Liczba_pobytów_w_hotelach,\"Brakujące istotne informacje szczegółowe\",\"Wpisane istotne informacje szczegółowe\")","v":"Brakujące istotne informacje szczegółowe"},{"$nulls":3},"Zajęcia 3"]
[{"$nulls":4},{"$f":"IF(AND($G$12<>\"\",G13=\"\"),1,\"\")","v":""},"Daty i godziny"]
[{"$nulls":4},{"$f":"IF(AND($G$12<>\"\",G14=\"\"),1,\"\")","v":""},"Data rezerwacji"]
[{"$nulls":4},{"$f":"IF(AND($G$12<>\"\",G15=\"\"),1,\"\")","v":""},"Numer potwierdzenia"]

{"sheet":"Wypożyczenie samochodu","index":4,"n_rows":13,"n_cols":4,"rows_kept":13,"merged":[[18,0,18,4]]}
[]
[]
[null,null,"Informacje o wypożyczeniu samochodu"]
[null,null,"Wypożyczenie samochodu?","Tak"]
[null,{"$f":"IF(AND($D$4=\"Tak\",D5=\"\"),1,\"\")","v":""},"Data rezerwacji",{"$f":"TODAY()+45","v":"2013-01-06"}]
[null,1,"Wypożyczalnia"]
[null,1,"Data/godzina odbioru"]
[null,1,"Data/godzina oddania"]
[null,1,"Numer potwierdzenia"]
[null,"","Typ samochodu","Osobowy"]
[null,1,"Numer telefonu"]
[]
[null,{"$f":"Wpis_wypożyczenia_samochodu","v":2},{"$f":"IF(B13<>Liczba_wypożyczeń_samochodów,\"Brakujące istotne informacje szczegółowe\",\"Wpisane istotne informacje szczegółowe\")","v":"Brakujące istotne informacje szczegółowe"}]

{"sheet":"Informacje i kontakty alarmowe","index":5,"n_rows":11,"n_cols":6,"rows_kept":11,"merged":[[3,4,4,4],[3,5,4,5],[3,6,4,6],[5,4,6,4],[5,5,6,5],[5,6,6,6],[7,5,8,5],[7,6,8,6],[16,1,16,6]]}
[]
[]
[null,"Szczegóły ubezpieczenia",{"$nulls":3},"Szczegóły kontaktów alarmowych"]
[{"$f":"IF(C4=\"\",1,\"\")","v":""},"Firma ubezpieczeniowa","Humongous Insurance",null,{"$f":"IF(G4=\"\",1,\"\")","v":1},"Imię i nazwisko/relacja/telefon"]
["","Numer telefonu",1235550567]
["","Typ ubezpieczenia","1900-01-05",null,{"$f":"IF(G6=\"\",1,\"\")","v":1},"Imię i nazwisko/relacja/telefon"]
["","Numer potwierdzenia","1900-01-05"]
["","Data zakupu",{"$f":"TODAY()","v":"2012-11-22"},null,null,"Imię i nazwisko/relacja/telefon"]
[1,"Daty ważności"]
[]
[{"$f":"Wpis_wydatku_specjalnego","v":5},{"$f":"IF(A11<>Liczba_wydatków_specjalnych,\"Brakujące istotne informacje szczegółowe\",\"Wpisane istotne informacje szczegółowe\")","v":"Brakujące istotne informacje szczegółowe"}]